fUST/lending_fUST_20250607
["ID","MTS","AMOUNT","RATE_DAILY","PERIOD"]
[364816041,1749251434628,-430.0,0.00019178,2]
[364816042,1749251434637,-430.0,0.00019178,2]
[364816043,1749251434646,-430.0,0.00019178,2]
[364816044,1749251434656,-440.0,0.00019178,2]
[364816045,1749251434665,-440.0,0.00019178,2]
[364816046,1749251434674,-871.13,0.00019178,2]
[364816047,1749251434684,-476.78,0.00019178,2]
[364816048,1749251434693,-440.0,0.00019178,2]
[364816049,1749251434703,-440.0,0.00019178,2]
[364816050,1749251434712,-232.22211638,0.00019178,2]
[364816051,1749251434721,-708.43,0.00019178,2]
[364816052,1749251434731,-440.0,0.00019178,2]
[364816053,1749251434740,-440.0,0.00019178,2]
[364816054,1749251434750,-440.0,0.00019178,2]
[364816055,1749251434759,-430.0,0.00019178,2]
[364816056,1749251434768,-347.49206568,0.00019178,2]
[364816057,1749251434777,-430.0,0.00019178,2]
[364816058,1749251434787,-440.0,0.00019178,2]
[364816059,1749251434796,-180.75821,0.00019178,2]
[364816060,1749251434805,-440.0,0.00019452,2]
[364816061,1749251434815,-722.14,0.00019452,2]
[364816062,1749251434824,-867.82,0.00019452,2]
[364816063,1749251434834,-827.2,0.00019452,2]
[364816064,1749251434843,-440.0,0.00019452,2]
[364816065,1749251434854,-451.74,0.00019452,2]
[364816066,1749251434866,-440.0,0.00019452,2]
[364816067,1749251434875,-440.0,0.00019452,2]
[364816068,1749251434885,-510.81,0.00019452,2]
[364816069,1749251434894,-440.0,0.00019452,2]
[364816070,1749251434903,-440.0,0.00019452,2]
[364816071,1749251434914,-950.65,0.00019452,2]
[364816072,1749251434923,-440.0,0.00019452,2]
[364816073,1749251434932,-440.0,0.00019452,2]
[364816074,1749251434943,-871.13,0.00019452,2]
[364816075,1749251434952,-476.78,0.00019452,2]
[364816076,1749251434962,-440.0,0.00019452,2]
[364816077,1749251434971,-440.0,0.00019452,2]
[364816078,1749251434980,-384.15965843,0.00019452,2]
[364816079,1749251438756,-324.27034157,0.00019452,2]
[364816080,1749251438766,-82.87416225,0.00019452,2]
[364816081,1749251438778,-357.12583775,0.00019452,2]
[364816082,1749251438789,-490.0,0.00019452,2]
[364816083,1749251438799,-440.0,0.00019452,2]
[364816084,1749251438808,-604.87757309,0.00019725,2]
[364816085,1749251438817,-440.0,0.00019726,2]
[364816086,1749251438827,-867.82,0.00019726,2]
[364816087,1749251438837,-827.2,0.00019726,2]
[364816088,1749251438849,-440.0,0.00019726,2]
[364816089,1749251438860,-451.74,0.00019726,2]
[364816090,1749251438872,-297.18,0.00019726,2]
[364816091,1749251438882,-440.0,0.00019726,2]
[364816092,1749251438891,-510.81,0.00019726,2]
[364816093,1749251438901,-440.0,0.00019726,2]
[364816094,1749251438913,-440.0,0.00019726,2]
[364816095,1749251438922,-950.65,0.00019726,2]
[364816096,1749251438931,-440.0,0.00019726,2]
[364816097,1749251438943,-440.0,0.00019726,2]
[364816098,1749251438953,-871.13,0.00019726,2]
[364816099,1749251438963,-476.78,0.00019726,2]
[364816100,1749251438972,-440.0,0.00019726,2]
[364816101,1749251438981,-440.0,0.00019726,2]
[364816102,1749251438992,-708.43,0.00019726,2]
[364816103,1749251439002,-440.0,0.00019726,2]
[364816104,1749251439011,-440.0,0.00019726,2]
[364816105,1749251439021,-1119.79126368,0.000199,2]
[364816106,1749251439032,-440.0,0.0002,2]
[364816107,1749251439042,-1751.04223638,0.0002,2]
[364816216,1749251443757,-759.34,0.00019178,2]
[364816217,1749251443767,-759.34,0.00019452,2]
[364816218,1749251443778,-759.34,0.00019726,2]
[364816219,1749251443788,-8850.13518792,0.0002,2]
[364816220,1749251446824,-723.8,0.00019178,2]
[364816221,1749251446834,-723.8,0.00019452,2]
[364816222,1749251446844,-723.8,0.00019726,2]
[364816223,1749251446854,-23691.75456686,0.0002,2]
[364816295,1749251893069,337.937186,0.00013699,2]
[364816356,1749252427132,-214.296282,0.0001814,2]
[364816357,1749252427157,-64.65240958,0.0001817,2]
[364816367,1749252515230,-293.40414516,0.00018,2]
[364816371,1749252518231,151.0,0.0002,120]
[364816375,1749252519820,-158.62,0.00018,2]
[364816376,1749252521395,-311.69021767,0.00018,2]
[364816377,1749252525891,-230.41930222,0.00018,2]
[364816378,1749252529618,-195.85382659,0.00018,2]
[364816379,1749252531698,-223.14975991,0.00018,2]
[364816380,1749252534507,-180.08330764,0.00018,2]
[364816381,1749252536164,-221.71357071,0.00018,2]
[364816382,1749252538178,-371.76640356,0.00018,2]
[364816383,1749252541710,-151.06405933,0.00018,2]
[364816384,1749252544448,-318.02843921,0.00018,2]
[364816385,1749252546928,-204.02502917,0.00018,2]
[364816386,1749252549533,-408.19835004,0.00018,2]
[364816388,1749252553737,-173.0428648,0.00018,2]
[364816393,1749252555838,-364.18772791,0.00018,2]
[364816402,1749252559095,-200.94979533,0.00018,2]
[364816406,1749252560679,-210.35491054,0.00018,2]
[364816409,1749252562333,-325.24035776,0.00018,2]
[364816410,1749252565322,-222.25790411,0.00018,2]
[364816411,1749252569371,-278.37449426,0.00018,2]
[364816412,1749252570197,-34229.10202445,0.00018,2]
[364816413,1749252570219,-18998.45186833,0.00018,2]
[364816414,1749252570241,-4710.84024259,0.0001817,2]
[364816457,1749252631924,-265.27490865,0.00018141,2]
[364816458,1749252631936,-34.72509135,0.00018141,2]
[364816459,1749252631946,-300.0,0.00018141,2]
[364816460,1749252631955,-300.0,0.00018141,2]
[364816461,1749252631965,-300.0,0.00018141,2]
[364816462,1749252631974,-941.0,0.00018141,2]
[364816463,1749252631983,-300.0,0.00018141,2]
[364816464,1749252631993,-16836.5617377,0.00018142,2]
[364816465,1749252632002,-198.78765923,0.0001817,2]
[364816466,1749252632012,-431.61194032,0.000189,2]
[364816467,1749252632022,-562.6821976,0.00018972,2]
[364816468,1749252632031,-156.04514171,0.00019068,2]
[364816469,1749252632041,-267.43501617,0.00019078,2]
[364816470,1749252632050,-421.20366846,0.00019078,2]
[364816473,1749252632060,-300.0,0.00019147,2]
[364816475,1749252632070,-604.28351266,0.00019148,2]
[364816476,1749252632080,-500.0,0.00019149,2]
[364816477,1749252632090,-513.5903136,0.00019149,2]
[364816478,1749252632100,-418.0,0.00019149,2]
[364816479,1749252632110,-500.0,0.00019149,2]
[364816480,1749252632120,-500.0,0.00019149,2]
[364816481,1749252632129,-500.0,0.00019149,2]
[364816482,1749252632139,-500.0,0.00019149,2]
[364816483,1749252632149,-618.58758035,0.00019149,2]
[364816484,1749252632158,-500.0,0.00019149,2]
[364816485,1749252632168,-500.0,0.00019149,2]
[364816486,1749252632178,-156.12092099,0.00019149,2]
[364816487,1749252632188,-500.0,0.00019149,2]
[364816488,1749252632197,-374.49646234,0.00019149,2]
[364816489,1749252632207,-500.0,0.00019149,2]
[364816490,1749252632217,-500.0,0.00019149,2]
[364816491,1749252632226,-371.94664621,0.00019149,2]
[364816492,1749252632236,-500.0,0.00019149,2]
[364816493,1749252632245,-500.0,0.00019149,2]
[364816494,1749252632255,-500.0,0.00019149,2]
[364816495,1749252632265,-1110.63,0.00019168,3]
[364816496,1749252632274,-1348.63,0.00019168,3]
[364816497,1749252632283,-674.31,0.00019168,3]
[364816498,1749252632292,-337.16,0.00019168,3]
[364816499,1749252632301,-168.58,0.00019168,3]
[364816500,1749252632314,-505.74,0.00019168,3]
[364816501,1749252632328,-423.41430117,0.00019177,2]
[364816502,1749252632338,-430.0,0.00019178,2]
[364816503,1749252632347,-440.0,0.00019178,2]
[364816504,1749252632356,-440.0,0.00019178,2]
[364816505,1749252632365,-505.87928417,0.00019178,2]
[364816506,1749252632374,-440.0,0.00019178,2]
[364816507,1749252632383,-440.0,0.00019178,2]
[364816508,1749252632392,-440.0,0.00019178,2]
[364816509,1749252632401,-440.0,0.00019178,2]
[364816510,1749252632410,-440.0,0.00019178,2]
[364816511,1749252632419,-344.11,0.00019178,2]
[364816512,1749252632428,-430.0,0.00019178,2]
[364816513,1749252632438,-440.0,0.00019178,2]
[364816514,1749252632447,-282.57561481,0.00019178,2]
[364816515,1749252632457,-430.0,0.00019178,2]
[364816516,1749252632470,-400.0,0.00019178,2]
[364816517,1749252632479,-430.0,0.00019178,2]
[364816518,1749252632488,-430.0,0.00019178,2]
[364816519,1749252632497,-440.0,0.00019178,2]
[364816520,1749252632508,-440.0,0.00019178,2]
[364816521,1749252632517,-160.0,0.00019178,2]
[364816522,1749252632527,-440.0,0.00019178,2]
[364816523,1749252632536,-472.27976292,0.00019178,2]
[364816524,1749252632546,-440.0,0.00019178,2]
[364816525,1749252632555,-450.0,0.00019178,2]
[364816526,1749252632565,-440.0,0.00019178,2]
[364816527,1749252632575,-440.0,0.00019178,2]
[364816528,1749252632584,-450.03230617,0.00019178,2]
[364816529,1749252632593,-440.0,0.00019178,2]
[364816530,1749252632603,-440.0,0.00019178,2]
[364816531,1749252632612,-440.0,0.00019178,2]
[364816532,1749252632621,-430.0,0.00019178,2]
[364816533,1749252632630,-440.0,0.00019178,2]
[364816534,1749252632639,-440.0,0.00019178,2]
[364816535,1749252632648,-440.0,0.00019178,2]
[364816536,1749252632658,-440.0,0.00019178,2]
[364816537,1749252632667,-440.0,0.00019178,2]
[364816538,1749252632676,-440.0,0.00019178,2]
[364816539,1749252632685,-440.0,0.00019178,2]
[364816540,1749252632694,-202.5,0.00019178,2]
[364816541,1749252632703,-400.0,0.00019178,2]
[364816542,1749252632712,-430.0,0.00019178,2]
[364816543,1749252632722,-440.0,0.00019178,2]
[364816544,1749252632731,-440.0,0.00019178,2]
[364816545,1749252632741,-440.0,0.00019178,2]
[364816546,1749252632750,-430.0,0.00019178,2]
[364816547,1749252632759,-440.0,0.00019178,2]
[364816548,1749252632769,-440.0,0.00019178,2]
[364816549,1749252632778,-374.19538542,0.00019178,2]
[364816550,1749252632789,-440.0,0.00019178,2]
[364816551,1749252632798,-440.0,0.00019178,2]
[364816552,1749252632808,-440.0,0.00019178,2]
[364816553,1749252632818,-450.0,0.00019178,2]
[364816554,1749252632827,-440.0,0.00019178,2]
[364816555,1749252632837,-440.0,0.00019178,2]
[364816557,1749252632846,-440.0,0.00019178,2]
[364816559,1749252632856,-440.0,0.00019178,2]
[364816561,1749252632866,-440.0,0.00019178,2]
[364816563,1749252632875,-440.0,0.00019178,2]
[364816565,1749252632885,-440.0,0.00019178,2]
[364816567,1749252632895,-440.0,0.00019178,2]
[364816568,1749252632905,-440.0,0.00019178,2]
[364816569,1749252632915,-440.0,0.00019178,2]
[364816570,1749252632924,-440.0,0.00019178,2]
[364816571,1749252632934,-430.0,0.00019178,2]
[364816572,1749252632943,-440.0,0.00019178,2]
[364816573,1749252632953,-440.0,0.00019178,2]
[364816574,1749252632962,-440.0,0.00019178,2]
[364816575,1749252632971,-440.0,0.00019178,2]
[364816577,1749252632981,-440.0,0.00019178,2]
[364816579,1749252632991,-440.0,0.00019178,2]
[364816581,1749252633000,-440.0,0.00019178,2]
[364816583,1749252633010,-440.0,0.00019178,2]
[364816585,1749252633020,-440.0,0.00019178,2]
[364816587,1749252633030,-204.69692129,0.00019178,2]
[364816589,1749252633041,-440.0,0.00019178,2]
[364816591,1749252633053,-440.0,0.00019178,2]
[364816593,1749252633063,-440.0,0.00019178,2]
[364816595,1749252633074,-400.0,0.00019178,2]
[364816597,1749252633084,-400.53725127,0.00019178,2]
[364816599,1749252633094,-450.0,0.00019178,2]
[364816601,1749252633105,-440.0,0.00019178,2]
[364816603,1749252633115,-440.0,0.00019178,2]
[364816605,1749252633125,-430.0,0.00019178,2]
[364816607,1749252633134,-430.0,0.00019178,2]
[364816609,1749252633144,-440.0,0.00019178,2]
[364816611,1749252633154,-430.0,0.00019178,2]
[364816613,1749252633163,-430.91649204,0.00019178,2]
[364816615,1749252633173,-440.0,0.00019178,2]
[364816617,1749252633183,-440.0,0.00019178,2]
[364816619,1749252633193,-440.0,0.00019178,2]
[364816621,1749252633203,-430.0,0.00019178,2]
[364816623,1749252633212,-382.93370253,0.00019178,2]
[364816625,1749252633222,-300.0,0.00019178,2]
[364816640,1749252633348,-440.0,0.00019178,2]
[364816642,1749252633358,-440.0,0.00019178,2]
[364816644,1749252633368,-440.0,0.00019178,2]
[364816645,1749252633377,-440.0,0.00019178,2]
[364816647,1749252633387,-440.0,0.00019178,2]
[364816650,1749252633396,-440.0,0.00019178,2]
[364816652,1749252633406,-440.0,0.00019178,2]
[364816654,1749252633415,-440.0,0.00019178,2]
[364816656,1749252633425,-440.0,0.00019178,2]
[364816658,1749252633434,-440.0,0.00019178,2]
[364816659,1749252633443,-440.0,0.00019178,2]
[364816661,1749252633452,-504.06427936,0.00019178,2]
[364816663,1749252633464,-440.0,0.00019178,2]
[364816665,1749252633475,-440.0,0.00019178,2]
[364816667,1749252633484,-440.0,0.00019178,2]
[364816670,1749252633493,-430.0,0.00019178,2]
[364816671,1749252633503,-440.0,0.00019178,2]
[364816672,1749252633512,-440.0,0.00019178,2]
[364816673,1749252633521,-401.37522624,0.00019178,2]
[364816675,1749252633532,-440.0,0.00019178,2]
[364816676,1749252633548,-440.0,0.00019178,2]
[364816678,1749252633558,-440.0,0.00019178,2]
[364816679,1749252633568,-440.0,0.00019178,2]
[364816680,1749252633578,-440.0,0.00019178,2]
[364816681,1749252633588,-440.0,0.00019178,2]
[364816682,1749252633598,-440.0,0.00019178,2]
[364816683,1749252633607,-257.58301212,0.00019178,2]
[364816684,1749252633617,-430.0,0.00019178,2]
[364816685,1749252633627,-440.0,0.00019178,2]
[364816686,1749252633637,-402.66886999,0.00019178,2]
[364816687,1749252633647,-440.0,0.00019178,2]
[364816688,1749252633657,-400.0,0.00019178,2]
[364816689,1749252633667,-440.0,0.00019178,2]
[364816690,1749252633677,-440.0,0.00019178,2]
[364816691,1749252633687,-398.95049704,0.00019178,2]
[364816692,1749252633696,-440.0,0.00019178,2]
[364816693,1749252633707,-440.0,0.00019178,2]
[364816694,1749252633718,-440.0,0.00019178,2]
[364816695,1749252633728,-440.0,0.00019178,2]
[364816696,1749252633738,-440.0,0.00019178,2]
[364816697,1749252633749,-440.0,0.00019178,2]
[364816698,1749252633759,-440.0,0.00019178,2]
[364816699,1749252633769,-440.0,0.00019178,2]
[364816700,1749252633779,-440.0,0.00019178,2]
[364816701,1749252633789,-371.81984033,0.00019178,2]
[364816702,1749252633799,-421.55637079,0.00019178,2]
[364816703,1749252633808,-500.0,0.00019178,2]
[364816704,1749252633818,-500.0,0.00019178,2]
[364816705,1749252633830,-500.0,0.00019178,2]
[364816706,1749252633840,-500.0,0.00019178,2]
[364816707,1749252633849,-500.0,0.00019178,2]
[364816708,1749252633859,-500.0,0.00019178,2]
[364816709,1749252633869,-440.0,0.00019178,2]
[364816710,1749252633879,-440.0,0.00019178,2]
[364816711,1749252633889,-440.0,0.00019178,2]
[364816712,1749252633899,-440.0,0.00019178,2]
[364816713,1749252633909,-440.0,0.00019178,2]
[364816714,1749252633919,-440.0,0.00019178,2]
[364816715,1749252633930,-331.15364296,0.00019178,2]
[364816716,1749252633940,-430.0,0.00019178,2]
[364816717,1749252633951,-440.0,0.00019178,2]
[364816718,1749252633961,-430.0,0.00019178,2]
[364816719,1749252633971,-500.0,0.00019178,2]
[364816720,1749252633981,-332.94994507,0.00019178,2]
[364816721,1749252633992,-396.84150893,0.00019178,2]
[364816722,1749252634002,-440.0,0.00019178,2]
[364816723,1749252634012,-440.0,0.00019178,2]
[364816724,1749252634023,-539.02846265,0.00019178,2]
[364816725,1749252634033,-430.0,0.00019178,2]
[364816726,1749252634043,-440.0,0.00019178,2]
[364816727,1749252634053,-440.0,0.00019178,2]
[364816728,1749252634063,-170.26730873,0.00019178,2]
[364816729,1749252634074,-440.0,0.00019178,2]
[364816730,1749252634084,-440.0,0.00019178,2]
[364816731,1749252634094,-440.0,0.00019178,2]
[364816732,1749252634105,-430.0,0.00019178,2]
[364816733,1749252634115,-430.0,0.00019178,2]
[364816734,1749252634125,-440.0,0.00019178,2]
[364816735,1749252634137,-440.0,0.00019178,2]
[364816736,1749252634147,-430.0,0.00019178,2]
[364816737,1749252634157,-500.0,0.00019178,2]
[364816738,1749252634167,-500.0,0.00019178,2]
[364816739,1749252634177,-500.0,0.00019178,2]
[364816740,1749252634187,-500.0,0.00019178,2]
[364816741,1749252634196,-500.0,0.00019178,2]
[364816742,1749252634206,-500.0,0.00019178,2]
[364816743,1749252634216,-440.0,0.00019178,2]
[364816744,1749252634226,-440.0,0.00019178,2]
[364816745,1749252634235,-430.0,0.00019178,2]
[364816746,1749252634246,-440.0,0.00019178,2]
[364816747,1749252634255,-440.0,0.00019178,2]
[364816748,1749252634264,-440.0,0.00019178,2]
[364816749,1749252634273,-450.0,0.00019178,2]
[364816750,1749252634283,-370.0,0.00019178,2]
[364816751,1749252634292,-440.0,0.00019178,2]
[364816752,1749252634302,-440.0,0.00019178,2]
[364816753,1749252634311,-430.99257096,0.00019178,2]
[364816754,1749252634321,-440.0,0.00019178,2]
[364816755,1749252634330,-440.0,0.00019178,2]
[364816756,1749252634340,-440.0,0.00019178,2]
[364816757,1749252634349,-440.0,0.00019178,2]
[364816758,1749252634358,-440.0,0.00019178,2]
[364816759,1749252634367,-440.0,0.00019178,2]
[364816760,1749252634377,-430.0,0.00019178,2]
[364816761,1749252634386,-440.0,0.00019178,2]
[364816762,1749252634396,-490.0,0.00019178,2]
[364816763,1749252634405,-430.0,0.00019178,2]
[364816764,1749252634416,-440.0,0.00019178,2]
[364816765,1749252634426,-440.0,0.00019178,2]
[364816766,1749252634435,-440.0,0.00019178,2]
[364816767,1749252634447,-440.0,0.00019178,2]
[364816768,1749252634456,-440.0,0.00019178,2]
[364816769,1749252634469,-559.35933173,0.00019178,2]
[364816770,1749252634478,-440.0,0.00019178,2]
[364816771,1749252634487,-440.0,0.00019178,2]
[364816772,1749252634496,-276.87737818,0.00019178,2]
[364816773,1749252634507,-440.0,0.00019178,2]
[364816774,1749252634516,-440.0,0.00019178,2]
[364816775,1749252634527,-440.0,0.00019178,2]
[364816776,1749252634537,-440.0,0.00019178,2]
[364816777,1749252634546,-430.0,0.00019178,2]
[364816778,1749252634556,-570.0,0.00019178,2]
[364816779,1749252634565,-440.0,0.00019178,2]
[364816780,1749252634575,-440.0,0.00019178,2]
[364816781,1749252634585,-440.0,0.00019178,2]
[364816782,1749252634594,-430.0,0.00019178,2]
[364816783,1749252634603,-440.0,0.00019178,2]
[364816784,1749252634613,-440.0,0.00019178,2]
[364816785,1749252634623,-440.0,0.00019178,2]
[364816786,1749252634633,-440.0,0.00019178,2]
[364816787,1749252634643,-440.0,0.00019178,2]
[364816788,1749252634652,-440.0,0.00019178,2]
[364816789,1749252634662,-430.0,0.00019178,2]
[364816790,1749252634671,-440.0,0.00019178,2]
[364816791,1749252634681,-430.0,0.00019178,2]
[364816792,1749252634690,-440.0,0.00019178,2]
[364816793,1749252634700,-440.0,0.00019178,2]
[364816794,1749252634709,-430.0,0.00019178,2]
[364816795,1749252634719,-400.0,0.00019178,2]
[364816796,1749252634728,-430.0,0.00019178,2]
[364816797,1749252634738,-440.0,0.00019178,2]
[364816798,1749252634748,-401.79641392,0.00019178,2]
[364816799,1749252634758,-441.59147793,0.00019178,2]
[364816800,1749252634767,-440.0,0.00019178,2]
[364816801,1749252634776,-440.0,0.00019178,2]
[364816802,1749252634786,-440.0,0.00019178,2]
[364816803,1749252634795,-440.0,0.00019178,2]
[364816804,1749252634805,-440.0,0.00019178,2]
[364816805,1749252634815,-440.0,0.00019178,2]
[364816806,1749252634828,-430.0,0.00019178,2]
[364816807,1749252634840,-440.0,0.00019178,2]
[364816808,1749252634850,-178.96875614,0.00019178,2]
[364816809,1749252634859,-430.0,0.00019178,2]
[364816810,1749252634868,-400.0,0.00019178,2]
[364816811,1749252634878,-430.0,0.00019178,2]
[364816812,1749252634888,-430.0,0.00019178,2]
[364816813,1749252634897,-440.0,0.00019178,2]
[364816814,1749252634907,-430.0,0.00019178,2]
[364816815,1749252634917,-500.0,0.00019178,2]
[364816816,1749252634926,-440.0,0.00019178,2]
[364816817,1749252634936,-430.0,0.00019178,2]
[364816818,1749252634945,-440.0,0.00019178,2]
[364816819,1749252634954,-266.38857307,0.00019178,2]
[364816820,1749252634964,-430.0,0.00019178,2]
[364816821,1749252634974,-430.0,0.00019178,2]
[364816822,1749252634983,-440.0,0.00019178,2]
[364816823,1749252634993,-440.0,0.00019178,2]
[364816824,1749252635002,-400.73707092,0.00019178,2]
[364816825,1749252635011,-440.0,0.00019178,2]
[364816826,1749252635021,-440.0,0.00019178,2]
[364816827,1749252635030,-440.0,0.00019178,2]
[364816828,1749252635040,-440.0,0.00019178,2]
[364816829,1749252635049,-447.99994809,0.00019178,2]
[364816830,1749252635058,-440.0,0.00019178,2]
[364816831,1749252635068,-490.0,0.00019178,2]
[364816832,1749252635078,-440.0,0.00019178,2]
[364816833,1749252635087,-440.0,0.00019178,2]
[364816834,1749252635096,-440.0,0.00019178,2]
[364816835,1749252635105,-440.0,0.00019178,2]
[364816836,1749252635115,-440.0,0.00019178,2]
[364816837,1749252635125,-440.0,0.00019178,2]
[364816838,1749252635134,-440.0,0.00019178,2]
[364816839,1749252635143,-440.0,0.00019178,2]
[364816840,1749252635152,-430.0,0.00019178,2]
[364816841,1749252635162,-440.0,0.00019178,2]
[364816842,1749252635171,-440.0,0.00019178,2]
[364816843,1749252635181,-440.0,0.00019178,2]
[364816844,1749252635190,-430.0,0.00019178,2]
[364816845,1749252635200,-440.0,0.00019178,2]
[364816846,1749252635209,-440.0,0.00019178,2]
[364816847,1749252635219,-440.0,0.00019178,2]
[364816848,1749252635228,-952.99,0.00019178,2]
[364816849,1749252635238,-355.86025775,0.00019178,2]
[364816850,1749252635247,-430.0,0.00019178,2]
[364816851,1749252635257,-440.0,0.00019178,2]
[364816852,1749252635266,-296.78,0.00019178,2]
[364816853,1749252635276,-440.0,0.00019178,2]
[364816854,1749252635286,-390.0,0.00019178,2]
[364816855,1749252635296,-440.0,0.00019178,2]
[364816856,1749252635306,-440.0,0.00019178,2]
[364816857,1749252635315,-440.0,0.00019178,2]
[364816858,1749252635326,-1486.63,0.00019178,2]
[364816859,1749252635335,-706.66,0.00019178,2]
[364816860,1749252635345,-440.0,0.00019178,2]
[364816861,1749252635354,-440.0,0.00019178,2]
[364816862,1749252635364,-1429.91,0.00019178,2]
[364816863,1749252635373,-440.0,0.00019178,2]
[364816864,1749252635382,-502.23042331,0.00019178,2]
[364816865,1749252635392,-581.43,0.00019178,2]
[364816866,1749252635402,-430.0,0.00019178,2]
[364816867,1749252635411,-458.87,0.00019178,2]
[364816868,1749252635420,-440.0,0.00019178,2]
[364816869,1749252635430,-440.0,0.00019178,2]
[364816870,1749252635439,-440.0,0.00019178,2]
[364816871,1749252635448,-440.0,0.00019178,2]
[364816872,1749252635458,-440.0,0.00019178,2]
[364816873,1749252635471,-440.0,0.00019178,2]
[364816874,1749252635481,-431.43987039,0.00019178,2]
[364816875,1749252635490,-435.26812203,0.00019178,2]
[364816876,1749252635500,-440.0,0.00019178,2]
[364816877,1749252635510,-440.0,0.00019178,2]
[364816878,1749252635520,-440.0,0.00019178,2]
[364816879,1749252635530,-440.0,0.00019178,2]
[364816880,1749252635541,-440.0,0.00019178,2]
[364816881,1749252635551,-440.0,0.00019178,2]
[364816882,1749252635561,-440.0,0.00019178,2]
[364816883,1749252635571,-440.0,0.00019178,2]
[364816884,1749252635581,-440.0,0.00019178,2]
[364816885,1749252635590,-792.69,0.00019178,2]
[364816886,1749252635607,-440.0,0.00019178,2]
[364816887,1749252635616,-440.0,0.00019178,2]
[364816888,1749252635625,-430.0,0.00019178,2]
[364816889,1749252635635,-525.09977558,0.00019178,2]
[364816890,1749252635644,-440.0,0.00019178,2]
[364816891,1749252635653,-440.0,0.00019178,2]
[364816892,1749252635662,-440.0,0.00019178,2]
[364816893,1749252635671,-440.0,0.00019178,2]
[364816894,1749252635680,-440.0,0.00019178,2]
[364816895,1749252635689,-440.0,0.00019178,2]
[364816896,1749252635698,-430.0,0.00019178,2]
[364816897,1749252635707,-440.0,0.00019178,2]
[364816898,1749252635717,-440.0,0.00019178,2]
[364816899,1749252635726,-490.0,0.00019178,2]
[364816900,1749252635735,-440.0,0.00019178,2]
[364816901,1749252635744,-440.0,0.00019178,2]
[364816902,1749252635753,-440.0,0.00019178,2]
[364816903,1749252635762,-480.17217361,0.00019178,2]
[364816904,1749252635772,-430.0,0.00019178,2]
[364816905,1749252635781,-440.0,0.00019178,2]
[364816906,1749252635790,-440.0,0.00019178,2]
[364816907,1749252635887,-440.0,0.00019178,2]
[364816908,1749252635896,-440.0,0.00019178,2]
[364816909,1749252635905,-440.0,0.00019178,2]
[364816910,1749252635914,-440.0,0.00019178,2]
[364816911,1749252635923,-440.0,0.00019178,2]
[364816912,1749252635932,-440.0,0.00019178,2]
[364816913,1749252635942,-440.0,0.00019178,2]
[364816914,1749252635951,-580.83,0.00019178,2]
[364816915,1749252635960,-839.32,0.00019178,2]
[364816916,1749252635969,-440.0,0.00019178,2]
[364816917,1749252635984,-440.0,0.00019178,2]
[364816918,1749252635994,-440.0,0.00019178,2]
[364816919,1749252636003,-440.0,0.00019178,2]